bitfinex-derivatives/quotes_ETHF0:USTF0_20220108
["timestamp","ask_amount","ask_price","bid_price","bid_amount"]
[1641624831716,1.5,3212.6,3211.3,31.8934]
[1641624831918,1.5,3212.3,3210.7,1.31991555]
[1641624832119,0.7493,3212.3,3210.7,1.31991555]
[1641624832319,5.374,3213.1,3212.2,1.5]
[1641624832518,3.404,3213.1,3213.0,5.50958]
[1641624832718,0.03,3214.0,3213.0,5.363867]
[1641624833118,1.57581141,3213.8,3213.0,5.363867]
[1641624833318,1.5,3213.4,3213.1,1.24636317]
[1641624833519,0.9014,3213.4,3213.1,1.24636317]
[1641624833718,0.264788,3213.3,3213.1,1.24636317]
[1641624834520,0.264788,3213.3,3213.1,3.25115317]
[1641624835119,2.00479,3213.9,3213.1,3.25115317]
[1641624835320,0.264788,3213.8,3213.1,4.14295317]
[1641624835721,0.03,3214.0,3213.2,1.5]
[1641624835921,0.03,3214.0,3213.1,4.14295317]
[1641624836123,0.03,3214.0,3213.3,1.55527042]
[1641624836321,0.264788,3213.9,3213.3,1.55527042]
[1641624836521,0.264788,3213.9,3213.6,2.00479]
[1641624836924,0.03,3214.0,3213.6,2.00479]
[1641624837323,0.03,3214.0,3213.7,1.55056828]
[1641624837723,0.294788,3214.0,3213.7,1.55056828]
[1641624838923,1.794788,3214.0,3213.7,1.55056828]
[1641624840126,1.5,3213.9,3213.7,1.55056828]
[1641624840327,0.264788,3213.8,3213.7,1.55056828]
[1641624840527,2.269578,3213.8,3213.7,1.55056828]
[1641624841629,2.269578,3213.8,3213.1,2.00479]
[1641624841828,2.269578,3213.8,3212.7,2.00479]
[1641624841829,1.5,3213.3,3212.7,2.00479]
[1641624842027,1.5,3213.1,3212.7,2.00479]
[1641624842428,4.979924,3213.0,3212.7,2.00479]
[1641624842629,4.979924,3213.0,3212.7,2.92645237]
[1641624842630,0.264788,3212.9,3212.7,2.92645237]
[1641624844433,4.980079,3212.8,3212.7,2.92645237]
[1641624846437,0.264788,3212.9,3212.7,2.92645237]
[1641624847441,2.00479,3213.1,3212.7,2.92645237]
[1641624849541,32.6184,3213.7,3212.7,2.92645237]
[1641624849741,1.5,3213.5,3212.7,2.92645237]
[1641624849944,0.264788,3213.4,3212.7,2.92645237]
[1641624851641,1.764788,3213.4,3212.7,2.92645237]
[1641624852843,0.264788,3213.4,3212.7,2.92645237]
[1641624854445,1.764788,3213.4,3212.7,2.92645237]
[1641624854644,0.264788,3213.4,3212.7,2.92645237]
[1641624855047,0.264788,3213.4,3212.7,2.89445246]
[1641624855945,1.5,3213.3,3212.7,2.89445246]
[1641624856146,1.5,3213.7,3212.7,2.89445246]
[1641624856346,0.264788,3213.3,3212.7,2.89445246]
[1641624859151,1.5,3213.2,3212.7,2.89445246]
[1641624859353,1.5,3213.0,3212.7,2.89445246]
[1641624859953,0.264788,3212.9,3212.7,2.89445246]
[1641624861256,1.5,3212.8,3212.7,2.89445246]
[1641624861454,1.5,3212.8,3212.7,0.92166237]
[1641624861656,3.05656802,3212.8,3211.3,1.55623131]
[1641624861856,1.5,3211.9,3211.3,1.55623131]
[1641624862057,0.264788,3211.8,3211.3,1.55623131]
[1641624862456,0.264788,3211.8,3210.5,31.5392]
[1641624862658,2.00479,3211.6,3210.8,2.00479]
[1641624863058,0.264788,3211.5,3210.9,0.640787]
[1641624865361,0.264788,3211.5,3210.8,2.00479]
[1641624865759,0.264788,3211.5,3210.9,0.640787]
[1641624867061,67.59016494,3212.2,3211.3,1.55624099]
[1641624867062,32.9766,3212.2,3211.3,1.55624099]
[1641624867261,31.5676,3212.9,3211.4,1.55610538]
[1641624867869,33.2177,3213.0,3211.4,1.55610538]
[1641624867870,33.2177,3213.0,3211.5,1.5]
[1641624868262,33.2177,3213.0,3211.4,1.55610538]
[1641624868662,35.22249,3213.0,3212.2,2.00479]
[1641624868961,0.264788,3212.9,3212.2,3.18917818]
[1641624870264,1.5,3212.8,3212.2,3.18917818]
[1641624870466,0.264788,3212.7,3212.2,3.18917818]
[1641624871167,0.264788,3212.7,3212.3,0.640787]
[1641624871372,0.264788,3212.7,3212.3,1.398487]
[1641624871565,2.00479,3213.0,3212.3,1.398487]
[1641624871764,0.264788,3212.9,3212.3,1.398487]
[1641624876166,2.00479,3213.0,3212.3,1.398487]
[1641624876167,33.9642,3213.6,3212.5,1.5]
[1641624876368,31.503,3214.1,3212.8,3.05547121]
[1641624876768,2.81955727,3214.0,3213.3,2.00479]
[1641624876967,0.264788,3213.8,3213.3,2.81919]
[1641624877369,0.264788,3213.8,3213.4,0.98779265]
[1641624878370,1.5,3213.7,3213.4,0.98779265]
[1641624878568,0.264788,3213.6,3213.4,0.98779265]
[1641624878770,2.00479,3213.5,3213.4,0.98779265]
[1641624880070,3.50479,3213.5,3213.4,0.98779265]
[1641624881173,4.28955727,3213.5,3213.4,0.98779265]
[1641624881471,2.78955727,3213.5,3212.4,2.00479]
[1641624881670,1.5,3213.4,3212.5,1.54254555]
[1641624881872,2.78955727,3213.5,3212.5,1.54254555]
[1641624882376,2.00479,3213.5,3212.5,1.54254555]
[1641624882673,2.00479,3213.1,3212.5,1.54254555]
[1641624882874,0.264788,3213.0,3212.5,1.54254555]
[1641624883774,0.264788,3213.0,3212.6,0.640787]
[1641624887879,0.264788,3213.0,3212.5,1.54254555]
[1641624888485,1.764788,3213.0,3212.5,1.54254555]
[1641624888688,2.00479,3212.7,3212.5,1.54254555]
[1641624889088,0.264788,3212.6,3212.5,1.54254555]
[1641624896492,0.78476727,3213.0,3212.5,1.54254555]
[1641624896693,2.78955727,3213.1,3212.5,2.36924555]
[1641624896894,2.78955727,3213.1,3212.5,4.37403555]
[1641624897295,0.264788,3213.0,3212.5,4.37403555]
[1641624897894,0.264788,3213.0,3212.5,5.15694322]
[1641624899095,2.00479,3213.1,3212.5,4.37403555]
[1641624899996,2.00479,3213.1,3212.6,1.27991062]
[1641624900897,2.00479,3213.1,3212.6,0.78290767]
[1641624901097,2.00479,3213.1,3212.6,0.7007]
[1641624902600,2.00479,3213.1,3212.6,1.48360767]
[1641624903704,2.00479,3213.1,3212.6,3.03919261]
[1641624904502,0.78476727,3213.4,3213.0,1.55536234]
[1641624904703,1.04755202,3213.6,3213.1,2.140787]
[1641624904904,1.04755202,3213.6,3213.3,2.00479]
[1641624904905,5.202e-05,3213.6,3213.3,2.00479]
[1641624905203,2.03479,3214.0,3213.3,2.79619]
[1641624905406,2.03479,3214.0,3213.4,0.90936475]
[1641624906208,1.08639961,3214.0,3213.4,0.90936475]
[1641624906810,1.08639961,3214.0,3213.9,2.00479]
[1641624907010,1.08639961,3214.0,3213.9,2.645577]
[1641624907210,0.03,3214.0,3213.9,2.645577]
[1641624907411,0.03,3214.0,3213.9,3.99416281]
[1641624908412,0.03,3214.0,3213.9,5.54908016]
[1641624908612,1.57581141,3214.9,3213.9,7.04908016]
[1641624908812,1.57581141,3214.9,3214.4,2.00479]
[1641624909013,1.57581141,3214.9,3214.4,2.74259]
[1641624909215,2.00479,3215.0,3214.4,2.74259]
[1641624909415,2.00479,3215.0,3214.5,1.20243385]
[1641624911614,2.00479,3215.0,3214.6,0.640787]
[1641624912717,2.00479,3215.0,3214.5,1.20243385]
[1641624914020,2.00479,3215.0,3214.5,1.84322085]
[1641624916421,0.264788,3214.9,3214.5,1.20243385]
[1641624917219,2.00479,3215.0,3214.5,1.20243385]
[1641624917421,2.269578,3215.0,3214.5,1.20243385]
[1641624920928,2.269578,3215.0,3214.5,1.84322085]
[1641624921427,2.269578,3215.0,3214.5,1.20243385]
[1641624922828,3.148378,3215.0,3214.5,1.20243385]
[1641624923230,4.0,3214.6,3213.1,3.114]
[1641624923528,1.5,3214.3,3213.1,3.114]
[1641624923729,2.1879,3214.3,3213.1,3.114]
[1641624924328,1.5,3214.0,3213.2,1.26082951]
[1641624924529,0.264788,3213.9,3213.2,1.26082951]
[1641624924930,2.00479,3213.7,3213.2,1.26082951]
[1641624925131,0.264788,3213.6,3213.2,1.26082951]
[1641624925930,6.401288,3213.6,3213.2,1.26082951]
[1641624926332,4.901288,3213.6,3213.2,1.26082951]
[1641624927932,1.5,3213.4,3213.2,1.26082951]
[1641624928134,0.264788,3213.3,3213.2,1.26082951]
[1641624929033,2.269578,3213.3,3213.2,1.26082951]
[1641624932349,2.00479,3213.3,3213.2,1.26082951]
[1641624936853,2.00479,3213.3,3213.2,1.97442951]
[1641624937052,2.00479,3213.7,3213.2,5.02962253]
[1641624937253,2.00479,3213.7,3213.4,1.5]
[1641624938155,2.00479,3213.7,3213.2,5.02962253]
[1641624938355,2.00479,3213.7,3213.4,1.5]
[1641624940457,2.00479,3213.7,3213.2,4.31055678]
[1641624941160,2.00479,3213.7,3213.3,1.2777835]
[1641624941360,2.00479,3214.1,3213.6,1.5]
[1641624941559,0.79041058,3214.6,3213.7,2.06957934]
[1641624942560,0.79041058,3214.6,3213.8,1.55503341]
[1641624942958,2.79520058,3214.6,3213.8,3.55982341]
[1641624943158,2.79520058,3214.6,3213.8,2.00479]
[1641624943357,2.79520058,3214.6,3213.9,1.5]
[1641624943558,2.79520058,3214.6,3214.1,1.55487383]
[1641624943760,2.79520058,3214.6,3214.2,1.05004178]
[1641624944159,2.79520058,3214.9,3214.5,1.5]
[1641624944358,2.79520058,3214.9,3214.8,1.55454027]
[1641624944557,2.79520058,3214.9,3214.8,2.44554027]
[1641624944758,2.79520058,3214.9,3214.8,3.68975875]
[1641624945761,2.00479,3214.9,3214.8,3.68975875]
[1641624945962,2.79520058,3215.3,3214.8,5.18975875]
[1641624946460,2.79320058,3215.3,3214.8,5.18975875]
[1641624947063,2.79320058,3215.3,3214.8,7.19454875]
[1641624947465,2.00279,3215.3,3215.2,1.55434455]
[1641624947864,2.00279,3215.3,3215.2,2.72906559]
[1641624951973,2.00479,3215.9,3215.3,0.640787]
[1641624953174,2.00479,3215.9,3215.3,2.645577]
[1641624956676,2.00479,3215.9,3215.6,1.55414888]
[1641624956977,2.00479,3216.3,3215.6,2.48774888]
[1641624957176,2.00479,3216.3,3215.7,2.00479]
[1641624957978,2.00479,3216.3,3215.7,3.13430965]
[1641624958776,2.269578,3216.3,3215.7,3.13430965]
[1641624961279,2.00479,3216.3,3215.7,3.13430965]
[1641624966584,2.269578,3216.3,3215.7,3.13430965]
[1641624967583,2.00479,3216.3,3215.7,3.13430965]
[1641624969085,2.269578,3216.3,3215.7,3.13430965]
[1641624970800,3.769578,3216.3,3215.7,3.13430965]
[1641624971196,1.5,3216.1,3215.3,2.00479]
[1641624971396,0.264788,3216.0,3215.3,2.00479]
[1641624972195,0.264788,3216.0,3215.4,0.640787]
[1641624972594,1.5,3215.9,3215.3,2.00479]
[1641624972794,0.264788,3215.8,3215.4,1.13512783]
[1641624973996,0.79041058,3216.2,3215.5,0.640787]
[1641624974295,0.264788,3216.1,3215.5,0.640787]
[1641624975295,0.264788,3216.1,3216.0,2.00479]
[1641624975695,0.264788,3216.1,3215.3,2.00479]
[1641624976295,1.5,3216.0,3215.3,2.00479]
[1641624976496,0.264788,3215.9,3215.3,2.00479]
[1641624976995,0.264788,3215.9,3215.4,0.8134559]
[1641624978796,1.5,3215.8,3215.4,0.8134559]
[1641624978998,0.264788,3215.7,3215.4,0.8134559]
[1641624988114,2.79520058,3216.2,3215.4,0.8134559]
[1641624988315,2.79520058,3216.2,3215.4,1.6085559]
[1641624988917,0.79041058,3216.1,3215.4,1.6085559]
[1641624989418,0.79041058,3216.1,3215.7,2.00479]
[1641624990023,2.00479,3216.2,3215.7,2.00479]
[1641624991019,2.79520058,3216.2,3215.7,2.00479]
[1641624991920,0.79041058,3216.2,3215.7,2.00479]
[1641624992920,0.79041058,3216.0,3215.7,2.00479]
[1641624994521,1.05346716,3216.3,3215.7,2.00479]
[1641624994922,1.05346716,3215.9,3215.7,2.00479]
[1641624995822,1.05346716,3215.8,3215.7,2.00479]
[1641624997024,0.79298674,3215.8,3215.7,2.00479]
[1641624998023,0.79298674,3215.9,3215.7,2.00479]
[1641624998224,0.79298674,3215.9,3215.7,2.60239]
[1641624999323,8.674e-05,3215.9,3215.7,2.60239]
[1641625000526,1.05346716,3216.1,3215.7,2.60239]
[1641625000928,1.05346716,3216.4,3215.8,0.49649026]
[1641625001131,1.05346716,3216.4,3215.9,1.18131669]
[1641625001330,1.05346716,3216.4,3215.9,1.82210369]
[1641625002131,1.05346716,3216.4,3216.0,1.55395567]
[1641625002330,1.05346716,3216.4,3215.9,1.82210369]
[1641625002530,1.05346716,3216.4,3216.0,1.5]
[1641625002731,1.05346716,3216.4,3216.3,1.55383011]
[1641625003133,1.41573739,3216.7,3216.3,3.05383011]
[1641625003331,1.57581141,3217.1,3216.3,3.05383011]
[1641625003531,1.57581141,3217.1,3216.9,2.00479]
[1641625003731,1.96451386,3217.4,3217.0,0.640787]
[1641625004132,1.96451386,3217.4,3217.1,1.33529944]
[1641625004933,0.66188172,3217.4,3217.1,1.33529944]
[1641625005533,0.66188172,3217.4,3217.3,2.00479]
[1641625006135,1.96451386,3217.8,3217.3,2.00479]
[1641625006335,2.00479,3218.0,3217.3,2.00479]
[1641625006734,2.00479,3218.0,3217.3,3.50479]
[1641625006939,1.96451386,3218.2,3217.3,2.00479]
[1641625007138,1.96451386,3218.2,3217.7,1.55312061]
[1641625007339,1.96451386,3218.2,3217.8,0.640787]
[1641625007539,0.66183488,3218.1,3217.8,0.640787]
[1641625007937,0.66183488,3218.1,3217.9,0.85840418]
[1641625008939,4.62810838,3218.5,3217.9,0.85840418]
[1641625009238,2.00479,3218.5,3217.9,0.85840418]
[1641625013440,0.264788,3218.4,3217.9,0.85840418]
[1641625013640,2.00479,3218.5,3217.9,0.85840418]
[1641625013941,33.3543,3218.9,3217.9,0.85840418]
[1641625014143,34.40665714,3218.9,3217.9,0.85840418]
[1641625015443,33.3543,3218.9,3218.8,2.00479]
[1641625015643,1.05235714,3219.0,3218.8,3.53471239]
[1641625016443,1.5,3219.4,3218.8,3.53471239]
[1641625016444,1.05235714,3219.1,3218.8,1.52992239]
[1641625016643,1.05235714,3219.1,3218.8,0.25599675]
[1641625017844,1.5,3219.0,3218.8,0.89678375]
[1641625018044,1.764788,3219.0,3218.8,0.25599675]
[1641625018645,0.264788,3219.0,3218.8,0.25599675]
[1641625018846,1.5,3218.9,3218.8,0.25599675]
[1641625019446,2.2381,3218.9,3218.8,0.25599675]
[1641625020054,2.502888,3218.9,3216.3,1.31991555]
[1641625020254,1.5,3218.4,3216.9,34.4876]
[1641625020555,34.78178011,3218.8,3217.0,34.50448011]
[1641625020753,34.78178011,3218.8,3217.1,1.5]
[1641625021355,34.78178011,3218.8,3217.0,34.50448011]
[1641625021562,2.00479,3218.4,3217.6,2.00479]
[1641625021759,0.264788,3218.3,3217.6,2.00479]
[1641625021959,0.264788,3218.3,3217.7,1.33377045]
[1641625022960,0.264788,3218.3,3217.8,0.640787]
[1641625023960,2.00479,3218.4,3217.8,0.640787]
[1641625027763,0.264788,3218.3,3217.8,0.640787]
[1641625027964,0.264788,3218.3,3217.7,2.88689347]
[1641625028165,0.264788,3218.3,3217.8,0.640787]
[1641625030265,0.264788,3218.3,3217.7,2.88689347]
[1641625030467,1.122588,3218.3,3217.7,2.88689347]
[1641625031167,1.122588,3218.3,3217.7,1.33377045]
[1641625032364,0.264788,3218.3,3217.7,1.97455745]
[1641625032965,0.264788,3218.3,3217.7,1.33377045]
[1641625033865,1.764788,3218.3,3217.7,1.33377045]
[1641625034766,0.264788,3218.3,3217.7,1.33377045]
[1641625035665,1.764788,3218.3,3217.7,1.33377045]
[1641625035865,0.264788,3218.3,3217.7,1.33377045]
[1641625036065,1.5,3217.8,3217.7,1.33377045]
[1641625036265,1.764788,3217.8,3217.7,1.33377045]
[1641625036465,0.264788,3217.8,3217.7,1.33377045]
[1641625036868,1.764788,3217.8,3217.7,1.33377045]
[1641625037067,0.264788,3217.8,3217.7,1.33377045]
[1641625039768,0.264788,3218.0,3217.7,1.33377045]
[1641625040868,0.264788,3218.0,3217.7,2.19497045]
[1641625041570,2.00479,3218.4,3217.7,2.19497045]
[1641625041769,0.264788,3218.3,3217.7,2.19497045]
[1641625046074,0.264788,3218.3,3217.8,0.640787]
[1641625046475,0.264788,3218.3,3217.7,2.19497045]
[1641625047077,2.79278617,3218.7,3217.7,2.19497045]
[1641625047278,2.79278617,3218.7,3217.9,1.55305066]
[1641625047679,2.79278617,3218.7,3218.1,2.00479]
[1641625048083,2.79278617,3218.7,3218.2,1.22504218]
[1641625048281,2.79278617,3218.7,3218.2,1.86582918]
[1641625049085,2.00479,3218.7,3218.2,1.86582918]
[1641625050285,0.78799617,3219.0,3218.2,1.86582918]
[1641625051287,0.264788,3218.9,3218.2,1.86582918]
[1641625051687,0.264788,3218.9,3218.6,2.00479]
[1641625051886,0.78799617,3219.1,3218.7,1.06730266]
[1641625052086,1.05278417,3219.1,3218.7,1.06730266]
[1641625053189,0.78799617,3219.1,3218.7,1.06730266]
[1641625056488,0.78799617,3219.0,3218.7,1.06730266]
[1641625057591,0.78799617,3218.9,3218.7,1.06730266]
[1641625059397,0.264788,3218.8,3218.7,1.06730266]
[1641625059596,1.764788,3218.8,3217.6,0.77717892]
[1641625059796,2.00479,3218.4,3217.7,2.00479]
[1641625059996,2.00479,3218.4,3217.7,2.645577]
[1641625060196,2.269578,3218.4,3217.7,2.645577]
[1641625061399,2.269578,3218.4,3217.7,4.15617063]
[1641625061600,0.79107017,3218.3,3217.7,4.15617063]
[1641625061800,0.264788,3218.2,3217.7,4.15617063]
[1641625063607,0.264788,3218.2,3217.7,3.51538363]
[1641625063804,0.79107017,3218.1,3217.7,3.51538363]
[1641625065608,0.264788,3218.0,3217.7,3.51538363]
[1641625067012,1.05235714,3218.3,3217.9,1.55288907]
[1641625067811,0.264788,3218.2,3217.9,1.55288907]
[1641625069211,1.05235714,3218.5,3217.9,1.55288907]
[1641625069511,1.31714514,3218.5,3217.9,2.31928907]
[1641625070714,2.81714514,3218.5,3217.9,2.31928907]
[1641625070914,37.64489241,3218.0,3217.7,1.51059363]
[1641625071214,0.264788,3217.9,3217.7,1.51059363]
[1641625072013,0.56274914,3217.9,3217.7,1.51059363]
[1641625073418,0.29796114,3217.8,3217.7,1.51059363]
[1641625075918,1.35031828,3217.8,3217.7,1.51059363]
[1641625076721,1.05235714,3217.8,3217.7,1.51059363]
[1641625077125,0.264788,3217.9,3217.7,1.51059363]
[1641625077323,0.264788,3217.9,3217.7,2.38349363]
[1641625081225,2.00479,3218.0,3217.7,3.7571392]
[1641625081628,1.05235714,3218.2,3217.7,3.7571392]
[1641625082026,1.05235714,3218.2,3217.9,2.00479]
[1641625082226,1.05235714,3218.2,3217.9,5.05783583]
[1641625082426,2.24153238,3218.6,3218.1,3.05284326]
[1641625082626,2.24153238,3218.6,3218.3,1.5]
[1641625083027,2.00479,3218.8,3218.3,1.5]
[1641625083028,1.05625998,3218.4,3218.3,1.5]
[1641625083225,2.00479,3218.8,3218.3,2.33186946]
[1641625083426,2.00479,3218.8,3218.5,1.5]
[1641625083626,2.00479,3218.8,3218.5,2.4528]
[1641625085028,1.57984805,3218.9,3218.5,2.4528]
[1641625085229,34.70159,3219.4,3218.5,2.4528]
[1641625085429,2.00479,3219.4,3218.5,2.4528]
[1641625086030,0.28591939,3219.3,3218.5,0.9528]
[1641625086429,0.28591939,3219.3,3218.5,2.4528]
[1641625086933,0.28591939,3219.3,3218.5,0.9528]
[1641625087231,0.28591939,3219.3,3218.5,2.4528]
[1641625087431,0.79161212,3219.0,3218.8,1.55246718]
[1641625087633,0.79161212,3219.0,3218.9,1.86373205]
[1641625088232,0.264788,3219.2,3218.9,1.86373205]
[1641625088233,0.79161212,3219.1,3218.9,1.86373205]
[1641625088434,0.79161212,3219.1,3219.0,1.5524961]
[1641625089334,0.264788,3219.2,3219.0,1.5524961]
[1641625089736,0.28591939,3219.1,3219.0,1.5524961]
[1641625090135,0.28591939,3219.1,3218.9,1.86373205]
[1641625091536,2.00479,3219.4,3218.9,1.86373205]
[1641625091936,2.24133193,3219.9,3219.3,1.5]
[1641625092138,2.24133193,3219.9,3219.6,1.5]
[1641625092336,1.57984805,3219.9,3219.7,0.640787]
[1641625092537,1.96451386,3220.2,3219.7,0.640787]
[1641625092937,1.96451386,3220.2,3219.8,1.5520672]
[1641625093136,1.96451386,3220.2,3220.1,1.55192268]
[1641625093337,1.386e-05,3220.2,3220.1,2.44832268]
[1641625093540,2.62331838,3220.4,3220.1,3.94832268]
[1641625093838,66.0032,3221.8,3220.3,3.05174929]
[1641625094038,1.97750721,3221.1,3220.3,3.05174929]
[1641625094240,3.98229721,3221.1,3220.4,2.140787]
[1641625094438,3.98229721,3221.1,3220.5,1.5]
[1641625094838,3.98229721,3221.1,3220.6,1.33741167]
[1641625095238,1.97750721,3221.1,3220.6,1.33741167]
[1641625095438,3.26172006,3221.6,3221.0,3.0515302]
[1641625095639,1.29172006,3221.6,3221.4,1.5]
[1641625095938,1.29172006,3221.6,3221.5,1.55108258]
[1641625096138,1.05324553,3221.6,3221.5,1.55108258]
[1641625096339,1.05324553,3221.6,3221.5,2.19186958]
[1641625096939,1.05324553,3221.6,3221.5,3.45848743]
[1641625098041,2.00479,3222.1,3221.5,3.45848743]
[1641625098241,0.264788,3222.0,3221.5,1.90740485]
[1641625098642,2.00479,3222.1,3221.5,1.90740485]
[1641625101344,2.00479,3222.1,3221.5,2.74720485]
[1641625104247,3.50479,3221.6,3220.6,2.00479]
[1641625104449,1.5,3221.2,3220.6,2.00479]
[1641625104648,0.264788,3221.1,3220.6,2.00479]
[1641625104850,0.264788,3221.1,3220.6,0.640787]
[1641625105247,0.264788,3221.1,3220.7,0.83192183]
[1641625106248,2.269578,3221.1,3220.7,0.83192183]
[1641625114955,3.769578,3221.1,3220.7,0.83192183]
[1641625115160,1.5,3220.8,3220.2,2.00479]
[1641625115358,0.264788,3220.7,3219.9,1.55207683]
[1641625115557,0.264788,3220.7,3219.4,0.77982101]
[1641625115757,1.5,3220.0,3219.4,0.77982101]
[1641625115958,1.5,3219.7,3219.4,0.77982101]
[1641625116159,1.5,3219.7,3219.5,1.46081614]
[1641625116360,3.50479,3219.7,3219.5,1.46081614]
[1641625116560,0.264788,3219.6,3219.5,1.46081614]
[1641625117772,1.764788,3219.6,3218.7,1.31991555]
[1641625117971,1.5,3218.9,3218.5,1.54291227]
[1641625118170,1.5,3218.9,3218.4,0.77057238]
[1641625118171,1.5,3218.7,3218.4,0.77057238]
[1641625118369,1.5,3218.5,3218.4,0.77057238]
[1641625118570,1.24156971,3218.5,3218.4,0.77057238]
[1641625118971,0.264788,3218.5,3218.4,0.77057238]
[1641625119170,3.55823873,3218.6,3217.7,1.54291227]
[1641625119371,2.00479,3218.6,3218.5,0.52321829]
[1641625119569,2.00479,3218.6,3218.2,0.52321829]
[1641625120171,2.269578,3218.6,3218.2,0.52321829]
[1641625120774,0.97678171,3218.5,3218.0,2.00479]
[1641625120971,1.24156971,3218.4,3218.0,2.00479]
[1641625121173,1.24156971,3218.4,3218.1,1.38927651]
[1641625121373,0.264788,3218.4,3218.1,2.03006351]
[1641625121972,0.264788,3218.5,3218.1,2.03006351]
[1641625122276,1.24156971,3218.5,3218.1,1.38927651]
[1641625122473,0.264788,3218.5,3218.1,1.38927651]
[1641625124474,0.264788,3218.5,3218.1,2.05297651]
[1641625125477,1.24156971,3218.5,3218.1,2.05297651]
[1641625125674,0.264788,3218.5,3218.1,2.05297651]
[1641625125874,0.264788,3218.5,3218.3,0.52321829]
[1641625126074,2.00479,3218.6,3218.1,2.69376351]
[1641625127174,2.98157171,3218.6,3218.1,2.05297651]
[1641625127476,0.264788,3218.5,3218.1,2.05297651]
[1641625128375,2.00479,3218.2,3218.1,2.05297651]
[1641625129176,2.00479,3218.2,3218.1,2.5761948]
[1641625129378,2.00479,3218.6,3218.1,2.5761948]
[1641625129577,2.00479,3218.6,3218.4,0.52321829]
[1641625130180,2.00479,3218.6,3218.2,0.52321829]
[1641625131481,2.00479,3218.6,3218.1,2.05297651]
[1641625131680,2.00479,3218.6,3218.3,0.52321829]
[1641625134279,2.00479,3219.1,3218.1,2.05297651]
[1641625134878,2.00479,3219.1,3218.7,0.52321829]
[1641625135081,2.00479,3219.1,3218.7,1.95962012]
[1641625135880,2.00479,3219.1,3218.7,1.43640183]
[1641625136779,2.00479,3219.1,3218.7,1.95962012]
[1641625137581,2.00479,3219.1,3219.0,0.52321829]
[1641625137781,2.00479,3219.1,3219.0,1.10021829]
[1641625145690,2.00479,3219.1,3219.0,0.577]
[1641625145889,2.00479,3219.1,3218.7,1.43640183]
[1641625146295,2.269578,3219.1,3218.7,1.43640183]
[1641625146693,0.97678171,3218.8,3218.7,1.43640183]
[1641625146892,1.92636971,3218.8,3218.3,0.77259636]
[1641625147694,1.92636971,3218.8,3217.8,31.5134]
[1641625147894,0.97678171,3218.6,3218.1,1.11660491]
[1641625148095,0.97678171,3218.4,3218.1,1.11660491]
[1641625148494,2.00479,3218.2,3218.1,1.11660491]
[1641625149294,2.00479,3218.4,3218.1,1.11660491]
[1641625149496,2.269578,3218.4,3218.1,1.82690491]
[1641625149996,2.00479,3218.4,3218.2,0.640787]
[1641625151401,2.00479,3218.4,3218.3,0.52321829]
[1641625152197,2.00479,3219.0,3218.3,0.52321829]
[1641625152599,2.269578,3219.0,3218.2,0.640787]
[1641625153401,0.97678171,3218.9,3218.2,0.640787]
[1641625153904,0.97678171,3218.9,3218.2,1.16400529]
[1641625154101,0.97678171,3218.9,3218.2,0.640787]
[1641625154703,0.264788,3218.8,3218.2,0.640787]
[1641625156006,0.97678171,3218.9,3218.2,0.640787]
[1641625157010,0.264788,3218.8,3218.2,0.640787]
[1641625158317,0.97678171,3218.9,3218.2,0.640787]
[1641625160413,2.00479,3219.0,3218.7,0.52321829]
[1641625160614,2.00479,3219.3,3218.9,0.52321829]
[1641625160815,2.00479,3219.3,3219.2,0.52321829]
[1641625161014,2.00479,3219.3,3219.0,0.640787]
[1641625161616,2.00479,3219.3,3219.1,1.39172717]
[1641625167731,2.00479,3219.7,3219.1,1.39172717]
[1641625168132,0.264788,3219.6,3219.1,1.39172717]
[1641625172939,0.264788,3219.6,3219.1,2.16432353]
[1641625173540,2.00479,3219.7,3219.5,0.52321829]
[1641625173739,2.00479,3219.7,3219.6,1.48161003]
[1641625173939,2.00479,3219.7,3219.6,2.21661003]
[1641625178142,2.269578,3219.7,3219.6,2.21661003]
[1641625178543,3.24635971,3219.7,3219.6,1.48161003]
[1641625178743,18.18928254,3219.7,3218.9,1.31991555]
[1641625178943,0.97678171,3219.3,3218.9,1.31991555]
[1641625179248,0.264788,3219.2,3218.5,3.98603647]
[1641625179846,0.264788,3219.2,3218.8,0.52321829]
[1641625180243,0.264788,3219.2,3218.9,0.52321829]
[1641625180643,2.00479,3219.1,3219.0,1.2324956]
[1641625180845,3.55771283,3219.7,3219.0,2.1032956]
[1641625181246,3.55771283,3219.7,3219.4,0.52321829]
[1641625181545,3.82250083,3219.7,3219.4,0.52321829]
[1641625181743,3.82250083,3219.7,3219.5,1.27121869]
[1641625182146,2.269578,3219.7,3219.5,1.27121869]
[1641625182845,2.269578,3219.7,3219.5,1.79443698]
[1641625183446,2.269578,3219.7,3219.5,1.27121869]
[1641625185449,3.24635971,3219.7,3219.5,1.27121869]
[1641625186448,2.269578,3219.7,3219.5,1.27121869]
[1641625187249,2.269578,3219.7,3219.6,0.52321829]
[1641625187450,2.269578,3219.7,3219.5,1.27121869]
[1641625187651,3.24635971,3219.7,3219.5,1.27121869]
[1641625188050,3.24635971,3219.7,3219.2,2.00479]
[1641625188452,4.79928737,3219.7,3219.2,2.00479]
[1641625188650,3.82250566,3219.7,3219.2,2.00479]
[1641625189051,2.00479,3219.7,3219.2,2.00479]
[1641625189253,2.00479,3219.7,3219.6,0.52321829]
[1641625189452,2.00479,3219.7,3219.6,0.5999]
[1641625191554,0.264788,3219.6,3219.2,1.32331275]
[1641625191754,13.39,3219.2,3218.8,1.31991555]
[1641625191955,17.39,3219.3,3218.8,1.31991555]
[1641625192156,0.264788,3219.2,3218.8,1.31991555]
[1641625192354,2.53001329,3219.1,3218.8,1.31991555]
[1641625192555,15.92001329,3219.1,3218.7,1.31991555]
[1641625192756,2.269578,3219.0,3218.7,1.31991555]
[1641625194056,2.00479,3219.0,3218.9,0.52321829]
[1641625194258,0.264788,3219.3,3218.9,0.6461]
[1641625194659,0.264788,3219.3,3218.9,2.65089]
[1641625194859,1.24156971,3219.3,3218.9,2.65089]
[1641625195059,0.264788,3219.3,3218.9,2.65089]
[1641625195260,1.24156971,3219.3,3218.9,2.65089]
[1641625195460,0.264788,3219.3,3218.9,2.65089]
[1641625195660,0.264788,3219.3,3219.0,1.05517863]